bitfinex/quotes_BTCUSD_20241018
["timestamp","ask_amount","ask_price","bid_price","bid_amount"]
[1729211326840,0.67453137,67386.0,67367.0,0.38075179]
[1729211326841,0.01,67380.0,67367.0,0.22231279]
[1729211327057,0.14842,67376.0,67375.0,0.22231279]
[1729211327294,0.14842,67376.0,67367.0,0.22231279]
[1729211327295,0.17780904,67376.0,67368.0,0.00992964]
[1729211327518,0.17780904,67375.0,67365.0,0.091]
[1729211327759,0.16913892,67366.0,67365.0,0.239445]
[1729211327991,0.18023503,67366.0,67365.0,0.239445]
[1729211328849,0.18023503,67366.0,67365.0,0.244445]
[1729211329326,0.18023503,67366.0,67365.0,0.249445]
[1729211329785,0.18023503,67366.0,67365.0,0.25937918]
[1729211330034,0.19407946,67366.0,67365.0,0.25937918]
[1729211330252,0.19607946,67366.0,67365.0,0.25937918]
[1729211330488,0.19807946,67366.0,67365.0,0.25937918]
[1729211330700,0.19607946,67366.0,67365.0,0.25937918]
[1729211330909,0.18423503,67366.0,67365.0,0.25937918]
[1729211331568,0.18423503,67366.0,67365.0,0.24937918]
[1729211332033,0.18423503,67366.0,67365.0,0.25020718]
[1729211332256,0.01509611,67366.0,67365.0,0.25020718]
[1729211333404,0.004,67366.0,67365.0,0.25020718]
[1729211333830,0.004,67366.0,67365.0,0.25520718]
[1729211334487,0.002,67366.0,67365.0,0.26020718]
[1729211335163,0.002,67366.0,67365.0,0.28320718]
[1729211335375,0.002,67366.0,67365.0,0.28520718]
[1729211336342,0.22231279,67378.0,67366.0,0.023]
[1729211336559,0.01106005,67377.0,67372.0,0.148427]
[1729211336801,0.01106005,67377.0,67372.0,0.148428]
[1729211337006,0.01382525,67376.0,67373.0,0.08732182]
[1729211337248,0.01769713,67384.0,67376.0,0.296841]
[1729211337483,0.01769713,67384.0,67376.0,0.44526]
[1729211337484,0.22231279,67379.0,67376.0,0.44526]
[1729211337688,0.02488924,67383.0,67376.0,0.44526]
[1729211337689,0.148407,67382.0,67377.0,0.01001576]
[1729211337900,0.148405,67383.0,67377.0,0.01001576]
[1729211338117,0.02488916,67382.0,67377.0,0.01001576]
[1729211338331,0.148405,67383.0,67377.0,0.01001576]
[1729211338552,0.296803,67385.0,67377.0,0.01001576]
[1729211338762,0.148407,67383.0,67377.0,0.01001576]
[1729211338970,0.01382809,67382.0,67377.0,0.01001576]
[1729211339193,0.01106247,67381.0,67377.0,0.01001576]
[1729211339473,0.01382809,67380.0,67377.0,0.01001576]
[1729211339705,0.20970672,67382.0,67377.0,0.01001576]
[1729211339924,0.173303,67381.0,67377.0,0.01001576]
[1729211340146,0.14841,67381.0,67377.0,0.01001576]
[1729211340380,0.01382935,67380.0,67375.0,0.005]
[1729211340609,0.06329972,67382.0,67378.0,0.01001425]
[1729211340837,0.44576215,67385.0,67375.0,0.301845]
[1729211340838,0.002,67380.0,67375.0,0.153422]
[1729211341071,0.003,67382.0,67379.0,0.01001273]
[1729211341295,0.02489408,67381.0,67376.0,0.148419]
[1729211341513,0.09590279,67381.0,67380.0,0.01001122]
[1729211341737,0.17630749,67381.0,67375.0,0.005]
[1729211342029,0.15141,67381.0,67375.0,0.153422]
[1729211342244,0.003,67381.0,67376.0,0.01001727]
[1729211342479,0.003,67381.0,67378.0,0.148414]
[1729211342702,0.003,67381.0,67376.0,0.15843627]
[1729211342921,0.152407,67382.0,67379.0,0.01001273]
[1729211343158,0.001,67380.0,67376.0,0.148419]
[1729211343401,0.01383435,67381.0,67377.0,0.148417]
[1729211343619,0.148408,67382.0,67376.0,0.148419]
[1729211343840,0.03090539,67381.0,67380.0,0.001]
[1729211344059,0.01983633,67381.0,67380.0,0.001]
[1729211344285,0.001,67380.0,67377.0,0.148418]
[1729211344501,0.148407,67382.0,67377.0,0.148418]
[1729211344732,0.17532024,67381.0,67378.0,0.01000085]
[1729211344934,0.15041,67381.0,67378.0,0.01000085]
[1729211345186,0.14841,67381.0,67378.0,0.01000085]
[1729211345384,0.15441,67381.0,67380.0,0.001]
[1729211345589,0.03091475,67381.0,67380.0,0.001]
[1729211345829,0.03091475,67381.0,67380.0,0.01099782]
[1729211346034,0.03091475,67381.0,67380.0,0.001]
[1729211346245,0.17932375,67381.0,67380.0,0.01099782]
[1729211346470,0.18332375,67381.0,67380.0,0.001]
[1729211346700,0.18332375,67381.0,67380.0,0.00999782]
[1729211346701,0.17732375,67381.0,67380.0,0.00999782]
[1729211346919,0.17332375,67381.0,67377.0,0.148418]
[1729211347166,0.006,67381.0,67380.0,0.01099782]
[1729211347374,0.03092598,67381.0,67380.0,0.001]
[1729211347594,0.03092598,67381.0,67380.0,0.01099782]
[1729211347805,0.03392598,67381.0,67380.0,0.001]
[1729211348019,0.18233498,67381.0,67380.0,0.01099782]
[1729211348238,0.17933498,67381.0,67380.0,0.001]
[1729211348483,0.17933498,67381.0,67380.0,0.01099782]
[1729211348694,0.18533498,67381.0,67380.0,0.002]
[1729211348902,0.17933498,67381.0,67380.0,0.01099782]
[1729211349111,0.17933498,67381.0,67380.0,0.001]
[1729211349328,0.18233498,67381.0,67380.0,0.01099782]
[1729211349545,0.154409,67381.0,67380.0,0.001]
[1729211349795,0.17934881,67381.0,67380.0,0.01099782]
[1729211350005,0.18534881,67381.0,67380.0,0.002]
[1729211350230,0.18534881,67381.0,67380.0,0.01199782]
[1729211350481,0.18534881,67381.0,67380.0,0.002]
[1729211350710,0.19920889,67381.0,67380.0,0.01199782]
[1729211350931,0.19920889,67381.0,67380.0,0.002]
[1729211351166,0.19920889,67381.0,67380.0,0.01199782]
[1729211352065,0.51730696,67381.0,67380.0,0.01199782]
[1729211352309,0.53504194,67381.0,67380.0,0.01199782]
[1729211352541,0.53504194,67381.0,67380.0,0.002]
[1729211352542,0.36590302,67381.0,67380.0,0.002]
[1729211352756,0.36590302,67381.0,67380.0,0.01199782]
[1729211352974,0.36590302,67381.0,67380.0,0.002]
[1729211353217,0.33818749,67381.0,67380.0,0.002]
[1729211353461,0.08248196,67381.0,67380.0,0.002]
[1729211353705,0.0647233,67381.0,67380.0,0.01199782]
[1729211354941,0.0647233,67381.0,67380.0,0.16540882]
[1729211355212,0.0647233,67381.0,67380.0,0.24200882]
[1729211356104,0.05084935,67381.0,67380.0,0.24200882]
[1729211356317,0.03697311,67381.0,67380.0,0.24200882]
[1729211356536,0.03697311,67381.0,67380.0,0.01199782]
[1729211356760,0.36839693,67381.0,67380.0,0.01199782]
[1729211356980,0.21701667,67381.0,67380.0,0.01199782]
[1729211357200,0.21701879,67381.0,67380.0,0.01199782]
[1729211357446,0.06860979,67381.0,67380.0,0.01199782]
[1729211357896,0.05085113,67381.0,67380.0,0.01199782]
[1729211358339,0.03697506,67381.0,67380.0,0.01199782]
[1729211359261,0.05085519,67381.0,67380.0,0.01199782]
[1729211359932,0.05085519,67381.0,67380.0,0.16540882]
[1729211360143,0.03697506,67381.0,67380.0,0.16540882]
[1729211360825,0.03697506,67381.0,67380.0,0.35920882]
[1729211361033,0.02310926,67381.0,67380.0,0.52834774]
[1729211361302,0.012,67381.0,67380.0,0.52834774]
[1729211362187,0.006,67381.0,67380.0,0.52734774]
[1729211362650,0.007,67381.0,67380.0,0.53434774]
[1729211362877,0.001656,67384.0,67383.0,0.171405]
[1729211363102,0.001656,67384.0,67383.0,0.17937271]
[1729211363322,0.001656,67384.0,67383.0,0.284958]
[1729211363538,0.001656,67384.0,67383.0,0.51741715]
[1729211363754,0.01943156,67398.0,67397.0,0.176374]
[1729211363984,0.01943156,67398.0,67397.0,0.350474]
[1729211363985,0.02665499,67398.0,67397.0,0.350474]
[1729211364241,0.01276666,67398.0,67397.0,0.36039422]
[1729211364943,0.001656,67398.0,67397.0,0.36039422]
[1729211366551,0.001656,67398.0,67397.0,0.36439422]
[1729211366788,0.001656,67398.0,67397.0,0.37039422]
[1729211366992,0.001656,67398.0,67397.0,0.36039422]
[1729211367212,0.001656,67398.0,67397.0,0.36639422]
[1729211367424,0.001656,67398.0,67397.0,0.37239422]
[1729211367425,0.002656,67398.0,67397.0,0.37239422]
[1729211367932,0.001656,67398.0,67397.0,0.36639422]
[1729211368594,0.001656,67398.0,67397.0,0.36039422]
[1729211369042,0.001656,67398.0,67397.0,0.36439422]
[1729211369269,0.001656,67398.0,67397.0,0.36839422]
[1729211369508,0.001656,67398.0,67397.0,0.36439422]
[1729211369731,0.001656,67398.0,67397.0,0.36039422]
[1729211369966,0.001656,67398.0,67397.0,0.36539422]
[1729211370212,0.001656,67398.0,67397.0,0.36439422]
[1729211370679,0.001656,67398.0,67397.0,0.36039422]
[1729211374888,0.001656,67398.0,67397.0,0.21202022]
[1729211375094,0.001656,67398.0,67397.0,0.36039422]
[1729211376183,0.003656,67398.0,67397.0,0.36039422]
[1729211376642,0.001656,67398.0,67397.0,0.36039422]
[1729211376855,0.003656,67398.0,67397.0,0.36039422]
[1729211377274,0.003656,67398.0,67397.0,0.21202022]
[1729211377484,0.003656,67398.0,67397.0,0.36039422]
[1729211377696,0.005656,67398.0,67397.0,0.36039422]
[1729211378832,0.005656,67398.0,67397.0,0.21202022]
[1729211379040,0.005656,67398.0,67397.0,0.36039422]
[1729211384821,0.01674521,67398.0,67397.0,0.36039422]
[1729211385542,0.18588413,67398.0,67397.0,0.11052022]
[1729211385776,0.16511721,67398.0,67397.0,0.10552022]
[1729211386004,0.01674521,67398.0,67397.0,0.10552022]
[1729211386230,0.01674521,67398.0,67397.0,0.0956]
[1729211386459,0.01674521,67398.0,67397.0,0.10544871]
[1729211387148,0.01674521,67398.0,67397.0,0.10044871]
[1729211387347,0.03062098,67398.0,67397.0,0.10044871]
[1729211387566,0.01953138,67398.0,67397.0,0.10044871]
[1729211387776,0.03063167,67398.0,67397.0,0.10044871]
[1729211388419,0.03063167,67398.0,67397.0,0.24882271]
[1729211389065,0.03063167,67398.0,67397.0,0.27682271]
[1729211389318,0.01675629,67398.0,67397.0,0.28182271]
[1729211390435,0.01677382,67398.0,67397.0,0.28182271]
[1729211390652,0.01277382,67398.0,67397.0,0.28182271]
[1729211390857,0.01277382,67398.0,67397.0,0.28582271]
[1729211393226,0.01277382,67398.0,67397.0,0.28878999]
[1729211393440,0.01277382,67398.0,67397.0,0.28582271]
[1729211393654,0.01277382,67398.0,67397.0,0.51178186]
[1729211393871,0.001656,67398.0,67397.0,0.61678186]
[1729211394812,0.001656,67398.0,67397.0,0.61478186]
[1729211395057,0.001656,67398.0,67397.0,0.62178186]
[1729211395058,0.002656,67398.0,67397.0,0.62178186]
[1729211395278,0.001656,67398.0,67397.0,0.61278186]
[1729211395501,0.002656,67398.0,67397.0,0.61878186]
[1729211395720,0.003656,67398.0,67397.0,0.63278186]
[1729211395940,0.003656,67398.0,67397.0,0.62678186]
[1729211396165,0.002656,67398.0,67397.0,0.62678186]
[1729211396381,0.003656,67398.0,67397.0,0.63578186]
[1729211396607,0.003656,67398.0,67397.0,0.37682271]
[1729211396822,0.01277276,67398.0,67397.0,0.33582271]
[1729211397297,0.01477276,67398.0,67397.0,0.35682271]
[1729211397511,0.01377276,67398.0,67397.0,0.34582271]
[1729211397941,0.01477276,67398.0,67397.0,0.37782271]
[1729211398372,0.01477276,67398.0,67397.0,0.36782271]
[1729211398373,0.01377276,67398.0,67397.0,0.36782271]
[1729211398621,0.01277276,67398.0,67397.0,0.35882271]
[1729211398836,0.002656,67398.0,67397.0,0.36682271]
[1729211399048,0.01377328,67398.0,67397.0,0.36682271]
[1729211399229,0.01277328,67398.0,67397.0,0.28182271]
[1729211399742,0.01377328,67398.0,67397.0,0.28782271]
[1729211399945,0.01477328,67398.0,67397.0,0.29482271]
[1729211400166,0.01277328,67398.0,67397.0,0.28182271]
[1729211400377,0.01377328,67398.0,67397.0,0.28782271]
[1729211400597,0.01377328,67398.0,67397.0,0.11144871]
[1729211400814,0.01377328,67398.0,67397.0,0.01584871]
[1729211400815,0.32939565,67398.0,67397.0,0.01584871]
[1729211400995,0.35278949,67398.0,67397.0,0.01584871]
[1729211401247,0.43558949,67398.0,67397.0,0.01784871]
[1729211401468,0.59937061,67398.0,67397.0,0.01584871]
[1729211401710,0.76580953,67398.0,67397.0,0.00984871]
[1729211401952,0.88375179,67398.0,67397.0,0.01384871]
[1729211402228,0.77280953,67398.0,67397.0,0.01384871]
[1729211402457,0.86155633,67398.0,67397.0,0.01084871]
[1729211403348,0.87555633,67398.0,67397.0,0.01184871]
[1729211403571,0.77980953,67398.0,67397.0,0.01084871]
[1729211404012,0.77980953,67398.0,67397.0,0.01184871]
[1729211404013,0.78880953,67398.0,67397.0,0.01184871]
[1729211404238,0.87757622,67398.0,67397.0,0.01184871]
[1729211404486,0.89975179,67398.0,67397.0,0.01184871]
[1729211404954,0.89989247,67398.0,67397.0,0.01184871]
[1729211405166,0.76590635,67398.0,67397.0,0.00984871]
[1729211405604,0.89989247,67398.0,67397.0,0.01184871]
[1729211405817,0.75997777,67398.0,67397.0,0.01184871]
[1729211406051,0.78883538,67398.0,67397.0,0.01184871]
[1729211406264,0.53359646,67398.0,67397.0,0.01184871]
[1729211406485,0.53359646,67398.0,67397.0,0.01084871]
[1729211406486,0.53367014,67398.0,67397.0,0.01084871]
[1729211406702,0.42234007,67398.0,67397.0,0.01084871]
[1729211407365,0.39558154,67398.0,67397.0,0.00984871]
[1729211407579,0.40958154,67398.0,67397.0,0.01084871]
[1729211407824,0.58184561,67398.0,67397.0,0.01084871]
[1729211408108,0.70391699,67398.0,67397.0,0.01084871]
[1729211408318,0.70391699,67398.0,67384.0,0.000828]
[1729211408319,0.31753892,67385.0,67384.0,0.000828]
[1729211408536,0.74725324,67385.0,67384.0,0.000828]
[1729211408953,0.64995718,67385.0,67384.0,0.000828]
[1729211409200,0.58335185,67385.0,67384.0,0.000828]
[1729211409414,0.56558952,67385.0,67384.0,0.000828]
[1729211409635,0.60997524,67385.0,67384.0,0.000828]
[1729211409862,0.56558952,67385.0,67384.0,0.000828]
[1729211410311,0.60995946,67385.0,67384.0,0.000828]
[1729211410530,0.56558952,67385.0,67384.0,0.000828]
[1729211411214,0.57958952,67385.0,67384.0,0.000828]
[1729211411441,0.59358952,67385.0,67384.0,0.000828]
[1729211412392,0.88628097,67385.0,67384.0,0.000828]
[1729211412609,1.23872876,67385.0,67384.0,0.000828]
[1729211412870,1.1499593,67385.0,67384.0,0.000828]
[1729211413099,0.81168146,67385.0,67384.0,0.000828]
[1729211413324,1.06946519,67385.0,67384.0,0.000828]
[1729211413826,0.77677374,67385.0,67384.0,0.000828]
[1729211414077,0.69358952,67385.0,67384.0,0.000828]
[1729211414275,0.3464506,67385.0,67384.0,0.000828]
[1729211417098,0.51558952,67385.0,67384.0,0.000828]
[1729211417304,0.4252506,67385.0,67384.0,0.000828]
[1729211417518,0.59438952,67385.0,67384.0,0.000828]
[1729211419589,0.59438952,67385.0,67380.0,0.000828]
[1729211419590,0.160409,67381.0,67380.0,0.000828]
[1729211419824,0.65873744,67381.0,67380.0,0.000828]
[1729211420268,0.72511036,67381.0,67380.0,0.000828]
[1729211420699,0.65873744,67381.0,67380.0,0.000828]
[1729211420937,0.73711071,67381.0,67380.0,0.000828]
[1729211421159,0.71496959,67381.0,67380.0,0.000828]
[1729211421380,0.48959852,67381.0,67380.0,0.000828]
[1729211421600,0.50159852,67381.0,67380.0,0.000828]
[1729211422057,0.51559852,67381.0,67380.0,0.000828]
[1729211422285,0.50159852,67381.0,67380.0,0.000828]
[1729211422743,0.51559852,67381.0,67380.0,0.000828]
[1729211422973,0.50359852,67381.0,67380.0,0.000828]
[1729211423445,0.48959852,67381.0,67380.0,0.000828]
[1729211423704,0.50359852,67381.0,67380.0,0.000828]
[1729211423936,0.50159852,67381.0,67380.0,0.000828]
[1729211424157,0.48759852,67381.0,67380.0,0.000828]
[1729211424390,0.1740506,67381.0,67380.0,0.000828]
[1729211424627,0.1880506,67381.0,67380.0,0.080128]
[1729211425121,0.3364596,67381.0,67380.0,0.09278096]
[1729211425570,0.3224596,67381.0,67380.0,0.080128]
[1729211425816,0.3254596,67381.0,67380.0,0.080128]
[1729211426261,0.49459852,67381.0,67380.0,0.000828]
[1729211426482,0.47759852,67381.0,67380.0,0.000828]
[1729211426695,0.60915045,67381.0,67380.0,0.000828]
[1729211426914,0.48059852,67381.0,67380.0,0.000828]
[1729211427334,0.46650707,67381.0,67380.0,0.000828]
[1729211427852,0.48250707,67381.0,67380.0,0.000828]
[1729211428074,0.18577201,67381.0,67380.0,0.000828]
[1729211428307,0.16004102,67381.0,67380.0,0.000828]
[1729211428519,0.32618101,67381.0,67380.0,0.03645169]
[1729211428967,0.33918101,67381.0,67380.0,0.03645169]
[1729211429420,0.34818101,67381.0,67380.0,0.03645169]
[1729211429648,0.36018101,67381.0,67380.0,0.03645169]
[1729211430113,0.34818101,67381.0,67380.0,0.03645169]
[1729211430839,0.34818101,67381.0,67380.0,0.000828]
[1729211430840,0.36205435,67381.0,67380.0,0.000828]
[1729211431063,0.37005435,67381.0,67380.0,0.03644973]
[1729211431282,0.37005435,67381.0,67380.0,0.023828]
[1729211431505,0.37005435,67381.0,67380.0,0.03644973]
[1729211432183,0.37005435,67381.0,67380.0,0.000828]
[1729211433956,0.37005435,67381.0,67380.0,0.03644798]
[1729211434386,0.37005435,67381.0,67380.0,0.000828]
[1729211434629,0.37005435,67381.0,67380.0,0.03644798]
[1729211434845,0.35618101,67381.0,67380.0,0.000828]
[1729211435316,0.35618101,67381.0,67380.0,0.03644798]
[1729211435982,0.35618101,67381.0,67380.0,0.000828]
[1729211436428,0.35624757,67381.0,67380.0,0.000828]
[1729211438669,0.32736815,67381.0,67380.0,0.000828]
[1729211438896,0.35826242,67381.0,67380.0,0.000828]
[1729211439136,0.35626242,67381.0,67380.0,0.000828]
[1729211439398,0.58162539,67381.0,67380.0,0.000828]
[1729211439630,0.60373742,67381.0,67380.0,0.000828]
[1729211439841,0.95214738,67381.0,67380.0,0.000828]
[1729211440075,0.160416,67378.0,67377.0,0.000828]
[1729211440357,0.39643456,67378.0,67377.0,0.000828]
[1729211440568,0.41857145,67378.0,67377.0,0.000828]
[1729211440785,0.40468243,67378.0,67377.0,0.000828]
[1729211441009,0.43826942,67378.0,67377.0,0.000828]
[1729211441237,0.60177148,67378.0,67377.0,0.000828]
[1729211442373,0.61577148,67378.0,67377.0,0.000828]
[1729211443276,0.72658525,67378.0,67377.0,0.000828]
[1729211443494,0.76473063,67378.0,67377.0,0.000828]
[1729211443974,0.77870775,67378.0,67377.0,0.000828]
[1729211444207,0.86130775,67378.0,67377.0,0.000828]
[1729211444469,0.48671984,67366.0,67365.0,0.000828]
[1729211444725,0.62436488,67366.0,67365.0,0.000828]
[1729211444968,0.62436488,67366.0,67365.0,0.01354392]
[1729211444969,1.02286107,67366.0,67365.0,0.01354392]
[1729211445206,1.02286107,67366.0,67365.0,0.000828]
[1729211445449,0.85372215,67366.0,67365.0,0.000828]
[1729211445674,1.02286107,67366.0,67365.0,0.000828]
[1729211445891,1.15176623,67366.0,67365.0,0.000828]
[1729211446116,1.18205321,67366.0,67365.0,0.000828]
[1729211446344,1.3150523,67366.0,67365.0,0.000828]
[1729211446819,0.260447,67364.0,67363.0,0.001656]
[1729211447058,0.71721795,67364.0,67363.0,0.001656]
[1729211447296,0.58422122,67364.0,67363.0,0.001656]
[1729211447526,0.73318037,67364.0,67363.0,0.001656]
[1729211448004,0.58422122,67364.0,67363.0,0.001656]
[1729211448235,0.61222122,67364.0,67363.0,0.001656]
[1729211448679,0.62994352,67364.0,67363.0,0.001656]
[1729211448888,0.79908244,67364.0,67363.0,0.001656]
[1729211449099,0.60194352,67364.0,67363.0,0.001656]
[1729211449520,0.88183132,67364.0,67363.0,0.001656]
[1729211449738,0.75336014,67364.0,67363.0,0.001656]
[1729211449957,0.90231929,67364.0,67363.0,0.001656]
[1729211450385,0.93031929,67364.0,67363.0,0.001656]
[1729211450830,0.94803052,67364.0,67363.0,0.001656]
[1729211451052,0.92003052,67364.0,67363.0,0.001656]
[1729211451486,1.05871076,67364.0,67363.0,0.001656]
[1729211451704,0.93399277,67364.0,67363.0,0.001656]
[1729211451935,0.148475,67351.0,67350.0,0.000827]
[1729211452204,1.07521249,67351.0,67350.0,0.000827]
[1729211452457,0.112,67350.0,67343.0,0.001654]
[1729211452666,0.48876884,67344.0,67343.0,0.001654]
[1729211452884,0.69305873,67344.0,67343.0,0.001654]
[1729211453347,0.6487964,67344.0,67343.0,0.001654]
[1729211453572,0.47965748,67344.0,67343.0,0.001654]
[1729211454766,0.49065748,67344.0,67343.0,0.001654]
[1729211455201,0.50165748,67344.0,67343.0,0.001654]
[1729211455417,0.90535555,67344.0,67343.0,0.001654]
[1729211455606,0.90535555,67344.0,67340.0,0.001654]
[1729211455607,0.160497,67341.0,67340.0,0.001654]
[1729211455877,0.150515,67333.0,67329.0,0.000828]
[1729211456096,0.49734673,67333.0,67330.0,0.22231279]
[1729211456343,0.49734673,67333.0,67329.0,0.000828]
[1729211456344,0.64630588,67333.0,67329.0,0.000828]
[1729211456580,0.64430588,67333.0,67329.0,0.000828]
[1729211456852,0.65630588,67333.0,67329.0,0.000828]
[1729211457304,0.50734673,67333.0,67329.0,0.000828]
[1729211457812,0.52134673,67333.0,67329.0,0.000828]
[1729211458506,0.50534673,67333.0,67329.0,0.000828]
[1729211458734,0.51928145,67333.0,67329.0,0.000828]
[1729211459820,0.52128145,67333.0,67329.0,0.000828]
[1729211460098,0.53528145,67333.0,67329.0,0.000828]
[1729211460340,0.52128145,67333.0,67329.0,0.000828]
[1729211460560,0.33614253,67333.0,67329.0,0.000828]
[1729211460811,0.48977657,67333.0,67329.0,0.000828]
[1729211461020,0.36414253,67333.0,67329.0,0.000828]
[1729211461450,0.32147415,67333.0,67332.0,0.099254]
[1729211461663,0.35014329,67333.0,67332.0,0.099254]
[1729211461885,0.36414053,67333.0,67332.0,0.099254]
[1729211462102,0.34649968,67333.0,67332.0,0.099254]
[1729211463913,0.36414349,67333.0,67332.0,0.099254]
[1729211466326,0.73109042,67333.0,67332.0,0.001654]
[1729211466539,0.50877763,67333.0,67332.0,0.001654]
[1729211466765,0.60877763,67333.0,67332.0,0.001654]
[1729211467457,0.58077763,67333.0,67332.0,0.001654]
[1729211467667,0.59477763,67333.0,67332.0,0.001654]
[1729211467872,0.60877763,67333.0,67332.0,0.001654]
[1729211468079,0.58077763,67333.0,67332.0,0.001654]
[1729211468521,0.59477763,67333.0,67332.0,0.001654]
[1729211468703,0.60877763,67333.0,67332.0,0.001654]
[1729211469624,0.58077763,67333.0,67332.0,0.001654]
[1729211470052,0.59477763,67333.0,67332.0,0.001654]
[1729211470266,0.58077763,67333.0,67332.0,0.001654]
[1729211470488,0.76391655,67333.0,67332.0,0.001654]
[1729211470700,0.67497763,67333.0,67332.0,0.001654]
[1729211471162,0.42966092,67330.0,67329.0,0.000828]
[1729211471388,0.60728941,67330.0,67329.0,0.000828]
[1729211471597,0.42966292,67329.0,67328.0,0.001654]
[1729211471816,0.160537,67323.0,67314.0,0.22231279]
[1729211472036,0.85664333,67323.0,67314.0,0.22231279]
[1729211472250,0.85664333,67323.0,67306.0,0.0994]
[1729211472251,0.51836549,67323.0,67306.0,0.0994]
[1729211472482,0.85664333,67323.0,67306.0,0.0994]
[1729211472699,0.85670764,67323.0,67306.0,0.0994]
[1729211472927,1.03245777,67323.0,67306.0,0.0994]
[1729211473158,1.03245777,67323.0,67295.0,0.149425]
[1729211473159,0.160559,67313.0,67302.0,0.22231279]
[1729211473376,0.60739019,67313.0,67302.0,0.22231279]
[1729211473618,0.72986342,67313.0,67299.0,0.0994]
[1729211473841,0.68539019,67313.0,67299.0,0.0994]
[1729211474515,0.69939019,67313.0,67299.0,0.0994]
[1729211474965,0.92170298,67313.0,67299.0,0.0994]
[1729211475184,0.69939019,67313.0,67299.0,0.0994]
[1729211476280,0.67065707,67313.0,67299.0,0.0994]
[1729211476503,0.68537282,67313.0,67299.0,0.0994]
[1729211476709,0.69937282,67313.0,67299.0,0.0994]
[1729211477548,0.81965961,67313.0,67299.0,0.0994]
[1729211478176,0.71337282,67313.0,67299.0,0.0994]
[1729211479584,0.4662339,67313.0,67300.0,0.22231279]
[1729211479795,0.63537282,67313.0,67299.0,0.0994]
[1729211481887,0.63537282,67313.0,67310.0,0.0922]
[1729211482768,0.62137282,67313.0,67310.0,0.0922]
[1729211482994,0.60737282,67313.0,67310.0,0.0922]
[1729211483218,0.62137282,67313.0,67304.0,0.0922]
[1729211483425,0.63537282,67313.0,67304.0,0.0922]
[1729211483633,0.62137282,67313.0,67304.0,0.0922]
[1729211484089,0.6353704,67313.0,67304.0,0.0922]
[1729211484535,0.6213704,67313.0,67304.0,0.0922]
[1729211484750,0.6353704,67313.0,67304.0,0.0922]
[1729211484954,0.61770066,67313.0,67304.0,0.0922]
[1729211485203,0.60370066,67313.0,67304.0,0.0922]
[1729211485646,0.61770066,67313.0,67304.0,0.0922]
[1729211485869,0.60370066,67313.0,67304.0,0.0922]
[1729211486303,0.61770066,67313.0,67304.0,0.0922]
[1729211487879,0.60665707,67313.0,67304.0,0.0922]
[1729211488102,0.617706,67313.0,67304.0,0.0922]
[1729211488314,0.615706,67313.0,67304.0,0.0922]
[1729211488734,0.617706,67313.0,67304.0,0.0922]
[1729211489829,0.615706,67313.0,67304.0,0.0922]
[1729211490058,0.615706,67313.0,67308.0,0.0773]
[1729211490946,0.617706,67313.0,67308.0,0.0773]
[1729211492971,0.615706,67313.0,67308.0,0.0773]
[1729211493440,0.617706,67313.0,67308.0,0.0773]
[1729211493661,0.615706,67313.0,67308.0,0.0773]
[1729211494355,0.617706,67313.0,67308.0,0.0773]
[1729211494589,0.615706,67313.0,67308.0,0.0773]
[1729211495711,0.60665707,67313.0,67308.0,0.0773]
[1729211495921,0.6177301,67313.0,67308.0,0.0773]
[1729211496136,0.6157301,67313.0,67308.0,0.0773]
[1729211496349,0.6177301,67313.0,67308.0,0.0773]
[1729211498151,0.6157301,67313.0,67308.0,0.0773]
[1729211498366,0.65993238,67313.0,67308.0,0.0773]
[1729211499001,0.66193238,67313.0,67308.0,0.0773]
[1729211499210,0.6157301,67313.0,67308.0,0.0773]
[1729211499458,0.6177301,67313.0,67308.0,0.0773]
[1729211499684,0.61575007,67313.0,67308.0,0.0773]
[1729211500342,0.6820535,67313.0,67308.0,0.0773]
[1729211500805,0.34661115,67313.0,67312.0,0.095727]
[1729211501029,0.33661115,67313.0,67312.0,0.095727]
[1729211501738,0.32261115,67313.0,67312.0,0.118727]
[1729211501977,0.30861115,67313.0,67312.0,0.196027]
[1729211502184,0.32261115,67313.0,67312.0,0.196027]
[1729211502396,0.33661115,67313.0,67312.0,0.196027]
[1729211502622,0.30861115,67313.0,67312.0,0.196027]
[1729211503062,0.32161115,67313.0,67312.0,0.196027]
[1729211503295,0.29751815,67313.0,67312.0,0.196027]
[1729211503538,0.30862388,67313.0,67312.0,0.196027]
[1729211503765,0.32162388,67313.0,67312.0,0.196027]
[1729211503994,0.18466473,67313.0,67312.0,0.201027]
[1729211504217,0.03610573,67313.0,67312.0,0.21478366]
[1729211504437,0.18466473,67313.0,67312.0,0.21478366]
[1729211504675,0.02410573,67313.0,67312.0,0.21478366]
[1729211505138,0.03610573,67313.0,67312.0,0.21478366]
[1729211505573,0.18466473,67313.0,67312.0,0.21478366]
[1729211507061,0.18466473,67313.0,67312.0,0.201027]
[1729211507274,0.18465337,67313.0,67312.0,0.201027]
[1729211507719,0.18465097,67313.0,67312.0,0.21476295]
[1729211508443,0.50274904,67313.0,67312.0,0.196027]
[1729211508661,0.50274904,67313.0,67312.0,0.201027]
[1729211508864,0.50274904,67313.0,67312.0,0.196027]
[1729211509297,0.50274904,67313.0,67312.0,0.201027]
[1729211509767,0.33361012,67313.0,67312.0,0.201027]
[1729211509985,0.33361012,67313.0,67312.0,0.2147553]
[1729211511978,0.33361012,67313.0,67312.0,0.2097553]
[1729211512204,0.50274904,67313.0,67312.0,0.196027]
[1729211514046,0.33361012,67313.0,67312.0,0.196027]
[1729211514986,0.33361012,67313.0,67312.0,0.20970918]
[1729211516823,0.33361012,67313.0,67312.0,0.196027]
[1729211517706,0.33361012,67313.0,67312.0,0.095727]
[1729211518148,0.33361012,67313.0,67312.0,0.118727]
[1729211518579,0.33361012,67313.0,67312.0,0.13241745]
[1729211519729,0.50274904,67313.0,67312.0,0.13241745]
[1729211519969,0.50274904,67313.0,67312.0,0.118727]
[1729211520394,0.50274904,67313.0,67312.0,0.000827]
[1729211520611,0.60051181,67313.0,67312.0,0.000827]
[1729211520859,0.87478,67313.0,67312.0,0.000827]
[1729211521098,0.76196297,67313.0,67312.0,0.000827]
[1729211521294,0.87276299,67313.0,67312.0,0.000827]
[1729211521504,0.77500689,67313.0,67312.0,0.000827]
[1729211521715,0.6512002,67313.0,67312.0,0.000827]
[1729211521935,0.6812002,67313.0,67312.0,0.000827]
[1729211522168,0.6672002,67313.0,67312.0,0.000827]
[1729211522433,0.260566,67310.0,67309.0,0.000827]